[Event "The Kvibergspelen 2024"]
[Site "Kviberg Park Hotel & Conference, Krutvagen 2, Gothenburg, Sweden"]
[Date "2024.09.06"]
[Round "2.12"]
[White "Rajcevski, Dejan"]
[Black "Ottgard, Andreas"]
[Result "0-1"]
[TimeControl "15 minutes + 5 seconds per move from move one (Round 1 - 4) / 90 minutes + 30 seconds per move from move one (Round 5 - 8)"]
[WhiteFideId "1759027"]
[BlackFideId "1730592"]
[WhiteElo "2131"]
[BlackElo "1931"]

1. c4 {[%clk 00:15:09]} Nf6 {[%clk 00:14:58]} {[%emt 00:00:13]} 2. g3 {[%clk
00:15:11]} {[%emt 00:00:02]} g6 {[%clk 00:14:59]} {[%emt 00:00:04]} 3. Nc3
{[%clk 00:15:14]} {[%emt 00:00:02]} Bg7 {[%clk 00:14:53]} {[%emt 00:00:10]} 4.
Bg2 {[%clk 00:15:17]} {[%emt 00:00:04]} d6 {[%clk 00:14:47]} {[%emt 00:00:12]}
5. d3 {[%clk 00:15:19]} {[%emt 00:00:02]} O-O {[%clk 00:14:45]} {[%emt
00:00:06]} 6. Nf3 {[%clk 00:15:22]} {[%emt 00:00:02]} c6 {[%clk 00:14:22]}
{[%emt 00:00:29]} 7. O-O {[%clk 00:15:23]} {[%emt 00:00:03]} Nbd7 {[%clk
00:14:11]} {[%emt 00:00:16]} 8. Bd2 {[%clk 00:15:26]} {[%emt 00:00:02]} e5
{[%clk 00:13:18]} {[%emt 00:00:58]} 9. Rb1 {[%clk 00:15:26]} {[%emt 00:00:05]}
a5 {[%clk 00:13:07]} {[%emt 00:00:16]} 10. b3 {[%clk 00:15:28]} {[%emt
00:00:04]} Qe7 {[%clk 00:12:44]} {[%emt 00:00:27]} 11. Qc1 {[%clk 00:15:04]}
{[%emt 00:00:30]} Rd8 {[%clk 00:12:37]} {[%emt 00:00:11]} 12. a3 {[%clk
00:14:41]} {[%emt 00:00:29]} d5 {[%clk 00:10:12]} {[%emt 00:02:29]} 13. cxd5
{[%clk 00:12:20]} {[%emt 00:02:26]} cxd5 {[%clk 00:09:41]} {[%emt 00:00:37]} 14.
Bg5 {[%clk 00:10:04]} {[%emt 00:02:19]} Nf8 {[%clk 00:07:36]} {[%emt 00:02:11]}
15. d4 {[%clk 00:09:50]} {[%emt 00:00:19]} e4 {[%clk 00:06:16]} {[%emt
00:01:26]} 16. Ne5 {[%clk 00:09:53]} {[%emt 00:00:03]} Ne6 {[%clk 00:05:48]}
{[%emt 00:00:32]} 17. Be3 {[%clk 00:09:34]} {[%emt 00:00:24]} Ne8 {[%clk
00:04:41]} {[%emt 00:01:12]} 18. f4 {[%clk 00:09:05]} {[%emt 00:00:34]} Nf8
{[%clk 00:03:49]} {[%emt 00:00:56]} 19. h3 {[%clk 00:07:04]} {[%emt 00:02:06]}
h5 {[%clk 00:03:51]} {[%emt 00:00:03]} 20. Qc2 {[%clk 00:05:48]} {[%emt
00:01:22]} f6 {[%clk 00:03:21]} {[%emt 00:00:34]} 21. Nxd5 {[%clk 00:04:47]}
{[%emt 00:01:06]} Rxd5 {[%clk 00:03:09]} {[%emt 00:00:17]} 22. Bxe4 {[%clk
00:04:48]} {[%emt 00:00:04]} Rd8 {[%clk 00:02:29]} {[%emt 00:00:45]} 23. Qc4+
{[%clk 00:03:47]} {[%emt 00:01:07]} Kh7 {[%clk 00:02:24]} {[%emt 00:00:11]} 24.
f5 {[%clk 00:02:20]} {[%emt 00:01:30]} fxe5 {[%clk 00:01:57]} {[%emt 00:00:32]}
25. fxg6+ {[%clk 00:02:21]} {[%emt 00:00:05]} Nxg6 {[%clk 00:01:44]} {[%emt
00:00:18]} 26. Qc2 {[%clk 00:00:43]} {[%emt 00:01:43]} Ra6 {[%clk 00:01:45]}
{[%emt 00:00:04]} 27. d5 {[%clk 00:00:39]} {[%emt 00:00:10]} Bxh3 {[%clk
00:01:26]} {[%emt 00:00:23]} 28. Rf2 {[%clk 00:00:42]} {[%emt 00:00:01]} Bh6
{[%clk 00:00:51]} {[%emt 00:00:41]} 29. Bxh6 {[%clk 00:00:23]} {[%emt
00:00:24]} Kxh6 {[%clk 00:00:53]} {[%emt 00:00:03]} 30. Kh2 {[%clk 00:00:24]}
{[%emt 00:00:03]} Bg4 {[%clk 00:00:57]} {[%emt 00:00:02]} 31. Rbf1 {[%clk
00:00:25]} {[%emt 00:00:03]} Ng7 {[%clk 00:00:41]} {[%emt 00:00:21]} 32. Rf7
{[%clk 00:00:21]} {[%emt 00:00:09]} Qe8 {[%clk 00:00:20]} {[%emt 00:00:25]} 33.
R7f6 {[%clk 00:00:22]} {[%emt 00:00:06]} Rxf6 {[%clk 00:00:20]} {[%emt
00:00:04]} 34. Rxf6 {[%clk 00:00:26]} {[%emt 00:00:01]} Nf5 {[%clk 00:00:06]}
{[%emt 00:00:19]} 35. Bxf5 {[%clk 00:00:18]} {[%emt 00:00:13]} Bxf5 {[%clk
00:00:10]} {[%emt 00:00:01]} 36. Qxf5 {[%clk 00:00:21]} {[%emt 00:00:04]} Rxd5
{[%clk 00:00:12]} {[%emt 00:00:02]} 37. Re6 {[%clk 00:00:10]} {[%emt 00:00:16]}
Qg8 {[%clk 00:00:14]} {[%emt 00:00:03]} 38. g4 {[%clk 00:00:08]} {[%emt
00:00:07]} hxg4 {[%clk 00:00:13]} {[%emt 00:00:05]} 39. Qxg4 {[%clk 00:00:11]}
{[%emt 00:00:02]} Rd4 {[%clk 00:00:16]} {[%emt 00:00:03]} 40. Qf5 {[%clk
00:00:11]} {[%emt 00:00:06]} Rh4+ {[%clk 00:00:18]} {[%emt 00:00:01]} 41. Kg1
{[%clk 00:00:13]} {[%emt 00:00:03]} Rf4 {[%clk 00:00:20]} {[%emt 00:00:03]} 42.
Qh3+ {[%clk 00:00:16]} {[%emt 00:00:01]} Rh4 {[%clk 00:00:22]} {[%emt
00:00:03]} 43. Qe3+ {[%emt 00:00:02]} Kh7 {[%clk 00:00:09]} {[%emt 00:00:18]}
44. Kf1 {[%clk 00:00:17]} {[%emt 00:00:08]} Qf7+ {[%clk 00:00:12]} 0-1

[Event "The Kvibergspelen 2024"]
[Site "Kviberg Park Hotel & Conference, Krutvagen 2, Gothenburg, Sweden"]
[Date "2024.09.06"]
[Round "2.13"]
[White "Degerfeldt, Sven"]
[Black "Nilsson, Patrik"]
[Result "0-1"]
[TimeControl "15 minutes + 5 seconds per move from move one (Round 1 - 4) / 90 minutes + 30 seconds per move from move one (Round 5 - 8)"]
[WhiteFideId "1717430"]
[BlackFideId "1708171"]
[WhiteElo "1915"]
[BlackElo "2124"]

1. d4 {[%clk 00:15:07]} {[%emt 00:00:03]} f5 {[%clk 00:15:08]} {[%emt
00:00:03]} 2. g3 {[%clk 00:15:10]} {[%emt 00:00:01]} Nf6 {[%clk 00:15:12]}
{[%emt 00:00:02]} 3. Bg2 {[%clk 00:15:13]} g6 {[%clk 00:15:15]} {[%emt
00:00:02]} 4. Nc3 {[%clk 00:15:16]} {[%emt 00:00:03]} Bg7 {[%clk 00:15:14]}
{[%emt 00:00:06]} 5. e4 {[%clk 00:15:18]} {[%emt 00:00:02]} fxe4 {[%clk
00:15:01]} {[%emt 00:00:18]} 6. Nxe4 {[%clk 00:15:21]} {[%emt 00:00:02]} Nxe4
{[%clk 00:14:55]} {[%emt 00:00:11]} 7. Bxe4 {[%clk 00:15:24]} {[%emt 00:00:02]}
d5 {[%clk 00:14:55]} {[%emt 00:00:05]} 8. Bg2 {[%clk 00:15:20]} {[%emt
00:00:09]} Nc6 {[%clk 00:14:20]} {[%emt 00:00:42]} 9. c3 {[%clk 00:15:12]}
{[%emt 00:00:11]} O-O {[%clk 00:13:28]} {[%emt 00:00:57]} 10. Be3 {[%clk
00:14:05]} {[%emt 00:01:12]} Be6 {[%clk 00:12:36]} {[%emt 00:00:58]} 11. Nf3
{[%clk 00:13:43]} {[%emt 00:00:25]} Qd7 {[%clk 00:12:21]} {[%emt 00:00:21]} 12.
h3 {[%clk 00:08:49]} {[%emt 00:04:59]} h6 {[%clk 00:11:03]} {[%emt 00:01:23]}
13. Qd2 {[%clk 00:07:59]} {[%emt 00:00:56]} g5 {[%clk 00:10:14]} {[%emt
00:00:54]} 14. O-O-O {[%clk 00:06:52]} {[%emt 00:01:12]} Bf5 {[%clk 00:09:59]}
{[%emt 00:00:20]} 15. Ne1 {[%clk 00:05:10]} {[%emt 00:01:46]} Qd6 {[%clk
00:08:14]} {[%emt 00:01:51]} 16. h4 {[%clk 00:04:40]} {[%emt 00:00:34]} g4
{[%clk 00:08:14]} {[%emt 00:00:05]} 17. Nd3 {[%clk 00:04:24]} {[%emt 00:00:21]}
Na5 {[%clk 00:06:53]} {[%emt 00:01:27]} 18. Bf4 {[%clk 00:02:54]} {[%emt
00:01:34]} Qa6 {[%clk 00:03:45]} {[%emt 00:03:14]} 19. Bxd5+ {[%clk 00:01:24]}
{[%emt 00:01:35]} e6 {[%clk 00:03:43]} {[%emt 00:00:06]} 20. Nb4 {[%clk
00:01:18]} {[%emt 00:00:11]} Qb6 {[%clk 00:03:04]} {[%emt 00:00:45]} 21. Bb3
{[%clk 00:01:05]} {[%emt 00:00:17]} Nxb3+ {[%clk 00:03:01]} {[%emt 00:00:09]}
22. axb3 {[%clk 00:01:07]} {[%emt 00:00:02]} a5 {[%clk 00:03:02]} {[%emt
00:00:05]} 23. Nd3 {[%clk 00:00:50]} {[%emt 00:00:21]} a4 {[%clk 00:02:59]}
{[%emt 00:00:08]} 24. b4 {[%clk 00:00:50]} {[%emt 00:00:05]} a3 {[%clk
00:03:02]} {[%emt 00:00:03]} 25. b3 {[%clk 00:00:22]} {[%emt 00:00:32]} Qa6
{[%clk 00:01:08]} {[%emt 00:02:00]} 26. Kb1 {[%clk 00:00:25]} {[%emt 00:00:02]}
b6 {[%clk 00:00:40]} {[%emt 00:00:33]} 27. Ka2 {[%clk 00:00:26]} {[%emt
00:00:03]} Rad8 {[%clk 00:00:24]} {[%emt 00:00:22]} 28. Ne5 {[%clk 00:00:16]}
{[%emt 00:00:16]} c5 {[%clk 00:00:22]} {[%emt 00:00:06]} 0-1

[Event "The Kvibergspelen 2024"]
[Site "Kviberg Park Hotel & Conference, Krutvagen 2, Gothenburg, Sweden"]
[Date "2024.09.06"]
[Round "2.14"]
[White "Ask, Josef"]
[Black "Helin, Mikael"]
[Result "1-0"]
[TimeControl "15 minutes + 5 seconds per move from move one (Round 1 - 4) / 90 minutes + 30 seconds per move from move one (Round 5 - 8)"]
[WhiteTitle "FM"]
[BlackTitle "CM"]
[WhiteFideId "1704583"]
[BlackFideId "1703838"]
[WhiteElo "2106"]
[BlackElo "1921"]

1. b3 {[%clk 00:15:08]} {[%emt 00:00:01]} c5 {[%clk 00:14:50]} {[%emt
00:00:20]} 2. Bb2 {[%clk 00:15:12]} {[%emt 00:00:01]} Nc6 {[%clk 00:14:50]}
{[%emt 00:00:05]} 3. f4 {[%clk 00:15:08]} {[%emt 00:00:09]} d6 {[%clk
00:14:21]} {[%emt 00:00:34]} 4. Nf3 {[%clk 00:14:57]} {[%emt 00:00:16]} Bg4
{[%clk 00:14:07]} {[%emt 00:00:18]} 5. e3 {[%clk 00:14:45]} {[%emt 00:00:17]}
Bxf3 {[%clk 00:13:40]} {[%emt 00:00:32]} 6. Qxf3 {[%clk 00:14:45]} {[%emt
00:00:05]} a6 {[%clk 00:13:32]} {[%emt 00:00:14]} 7. a3 {[%clk 00:14:34]}
{[%emt 00:00:15]} Nf6 {[%clk 00:13:11]} {[%emt 00:00:26]} 8. g4 {[%clk
00:14:22]} {[%emt 00:00:17]} d5 {[%clk 00:12:36]} {[%emt 00:00:40]} 9. g5
{[%clk 00:14:02]} {[%emt 00:00:25]} Ng8 {[%clk 00:11:20]} {[%emt 00:01:22]} 10.
f5 {[%clk 00:13:18]} {[%emt 00:00:48]} h6 {[%clk 00:10:06]} {[%emt 00:01:19]}
11. g6 {[%clk 00:13:10]} {[%emt 00:00:14]} fxg6 {[%clk 00:09:29]} {[%emt
00:00:42]} 12. fxg6 {[%clk 00:13:05]} {[%emt 00:00:10]} Nf6 {[%clk 00:09:18]}
{[%emt 00:00:15]} 13. Bh3 {[%clk 00:12:47]} {[%emt 00:00:24]} Qd6 {[%clk
00:08:25]} {[%emt 00:00:56]} 14. O-O {[%clk 00:11:35]} {[%emt 00:01:19]} h5
{[%clk 00:06:23]} {[%emt 00:02:06]} 15. b4 {[%clk 00:10:26]} {[%emt 00:01:14]}
b6 {[%clk 00:05:22]} {[%emt 00:01:06]} 16. Nc3 {[%clk 00:08:55]} {[%emt
00:01:37]} Ne5 {[%clk 00:04:41]} {[%emt 00:00:46]} 17. Qf5 {[%clk 00:08:16]}
{[%emt 00:00:44]} Rh6 {[%clk 00:04:04]} {[%emt 00:00:41]} 18. Nb5 {[%clk
00:07:40]} {[%emt 00:00:41]} axb5 {[%clk 00:02:58]} {[%emt 00:01:11]} 19. Bxe5
{[%clk 00:07:41]} {[%emt 00:00:04]} e6 {[%clk 00:02:26]} {[%emt 00:00:37]} 20.
Qg5 {[%clk 00:06:05]} {[%emt 00:01:40]} Ne4 {[%clk 00:01:52]} {[%emt 00:00:40]}
21. Bxd6 {[%clk 00:05:47]} {[%emt 00:00:23]} Nxg5 {[%clk 00:01:54]} {[%emt
00:00:02]} 22. Rxf8+ {[%clk 00:05:34]} {[%emt 00:00:19]} Kd7 {[%clk 00:01:59]}
23. Rxa8 {[%clk 00:05:19]} {[%emt 00:00:20]} Kxd6 {[%clk 00:02:01]} {[%emt
00:00:03]} 24. bxc5+ {[%clk 00:05:09]} {[%emt 00:00:15]} bxc5 {[%clk 00:02:04]}
{[%emt 00:00:02]} 25. Ra6+ {[%clk 00:05:08]} {[%emt 00:00:05]} Ke5 {[%clk
00:02:00]} {[%emt 00:00:09]} 26. Bg2 {[%clk 00:04:54]} {[%emt 00:00:19]} Rxg6
{[%clk 00:02:02]} {[%emt 00:00:03]} 27. Kh1 {[%clk 00:04:46]} {[%emt 00:00:14]}
h4 {[%clk 00:02:03]} {[%emt 00:00:04]} 28. h3 {[%clk 00:04:25]} {[%emt
00:00:25]} Nh7 {[%clk 00:01:35]} {[%emt 00:00:34]} 29. c3 {[%clk 00:04:11]}
{[%emt 00:00:19]} c4 {[%clk 00:01:30]} {[%emt 00:00:10]} 30. a4 {[%clk
00:03:59]} {[%emt 00:00:17]} b4 {[%clk 00:01:09]} {[%emt 00:00:26]} 31. cxb4
{[%clk 00:03:59]} {[%emt 00:00:05]} Nf6 {[%clk 00:00:59]} {[%emt 00:00:14]} 32.
Rf1 {[%clk 00:03:21]} {[%emt 00:00:44]} Nh5 {[%clk 00:01:01]} {[%emt 00:00:03]}
33. Kh2 {[%clk 00:02:59]} {[%emt 00:00:27]} Ng3 {[%clk 00:00:53]} {[%emt
00:00:13]} 34. Rf4 {[%clk 00:02:53]} {[%emt 00:00:11]} Nf5 {[%clk 00:00:56]}
{[%emt 00:00:02]} 35. Rg4 {[%clk 00:02:32]} {[%emt 00:00:26]} Rf6 {[%clk
00:00:51]} {[%emt 00:00:10]} 36. Rg5 {[%clk 00:02:26]} {[%emt 00:00:11]} g6
{[%clk 00:00:44]} {[%emt 00:00:12]} 37. b5 {[%clk 00:02:21]} {[%emt 00:00:10]}
d4 {[%clk 00:00:43]} {[%emt 00:00:07]} 38. e4 {[%clk 00:02:13]} {[%emt
00:00:11]} Kf4 {[%clk 00:00:42]} {[%emt 00:00:06]} 39. Rg4+ {[%clk 00:02:17]}
{[%emt 00:00:01]} Ke5 {[%clk 00:00:41]} {[%emt 00:00:07]} 40. exf5 {[%clk
00:02:20]} {[%emt 00:00:02]} gxf5 {[%clk 00:00:44]} 41. Rxh4 {[%clk 00:02:18]}
{[%emt 00:00:07]} c3 {[%clk 00:00:40]} {[%emt 00:00:09]} 42. dxc3 {[%clk
00:02:18]} {[%emt 00:00:07]} d3 {[%clk 00:00:44]} 43. Rd4 {[%clk 00:02:19]}
{[%emt 00:00:04]} f4 {[%clk 00:00:44]} {[%emt 00:00:05]} 44. Rxd3 {[%clk
00:02:16]} {[%emt 00:00:07]} 1-0

[Event "The Kvibergspelen 2024"]
[Site "Kviberg Park Hotel & Conference, Krutvagen 2, Gothenburg, Sweden"]
[Date "2024.09.06"]
[Round "2.15"]
[White "Olsson, Thomas"]
[Black "Lehtonen, Ture"]
[Result "0-1"]
[TimeControl "15 minutes + 5 seconds per move from move one (Round 1 - 4) / 90 minutes + 30 seconds per move from move one (Round 5 - 8)"]
[WhiteFideId "1702696"]
[BlackFideId "1712446"]
[WhiteElo "1902"]
[BlackElo "2099"]

1. e4 {[%clk 00:15:06]} {[%emt 00:00:03]} d6 {[%clk 00:15:03]} {[%emt
00:00:08]} 2. d4 {[%clk 00:14:59]} {[%emt 00:00:12]} Nf6 {[%clk 00:15:05]}
{[%emt 00:00:03]} 3. f3 {[%clk 00:14:56]} {[%emt 00:00:09]} c5 {[%clk
00:14:37]} {[%emt 00:00:32]} 4. Ne2 {[%clk 00:13:34]} {[%emt 00:01:27]} cxd4
{[%clk 00:14:20]} {[%emt 00:00:23]} 5. Nxd4 {[%clk 00:13:35]} {[%emt 00:00:03]}
e6 {[%clk 00:14:01]} {[%emt 00:00:24]} 6. Nc3 {[%clk 00:13:33]} {[%emt
00:00:06]} Be7 {[%clk 00:14:04]} {[%emt 00:00:02]} 7. Be3 {[%clk 00:12:52]}
{[%emt 00:00:47]} O-O {[%clk 00:14:07]} {[%emt 00:00:02]} 8. Qd2 {[%clk
00:12:33]} {[%emt 00:00:25]} a6 {[%clk 00:14:04]} {[%emt 00:00:07]} 9. g4
{[%clk 00:11:57]} {[%emt 00:00:40]} Nc6 {[%clk 00:12:58]} {[%emt 00:01:12]} 10.
g5 {[%clk 00:11:37]} {[%emt 00:00:26]} Nd7 {[%clk 00:12:59]} {[%emt 00:00:02]}
11. h4 {[%clk 00:11:34]} {[%emt 00:00:08]} Nde5 {[%clk 00:11:58]} {[%emt
00:01:06]} 12. Be2 {[%clk 00:11:19]} {[%emt 00:00:21]} d5 {[%clk 00:11:35]}
{[%emt 00:00:28]} 13. f4 {[%clk 00:09:40]} {[%emt 00:01:44]} Nxd4 {[%clk
00:11:15]} {[%emt 00:00:24]} 14. Bxd4 {[%clk 00:09:32]} {[%emt 00:00:13]} Nc6
{[%clk 00:11:19]} {[%emt 00:00:02]} 15. Bf2 {[%clk 00:07:46]} {[%emt 00:01:51]}
dxe4 {[%clk 00:10:38]} {[%emt 00:00:47]} 16. Nxe4 {[%clk 00:07:45]} {[%emt
00:00:07]} Qc7 {[%clk 00:10:17]} {[%emt 00:00:24]} 17. O-O-O {[%clk 00:06:41]}
{[%emt 00:01:09]} Rd8 {[%clk 00:10:17]} {[%emt 00:00:06]} 18. Qe3 {[%clk
00:06:41]} {[%emt 00:00:05]} Rxd1+ {[%clk 00:09:53]} {[%emt 00:00:30]} 19. Rxd1
{[%clk 00:06:44]} {[%emt 00:00:01]} Nb4 {[%clk 00:09:51]} {[%emt 00:00:07]} 20.
Nc3 {[%clk 00:05:57]} {[%emt 00:00:52]} Bd7 {[%clk 00:08:41]} {[%emt 00:01:15]}
21. Kb1 {[%clk 00:05:55]} {[%emt 00:00:06]} Bc6 {[%clk 00:08:32]} {[%emt
00:00:14]} 22. Bf3 {[%clk 00:04:57]} {[%emt 00:01:04]} Bxf3 {[%clk 00:08:17]}
{[%emt 00:00:20]} 23. Qxf3 {[%clk 00:04:59]} {[%emt 00:00:04]} Rc8 {[%clk
00:07:52]} {[%emt 00:00:30]} 24. Rc1 {[%clk 00:03:59]} {[%emt 00:01:04]} Bd6
{[%clk 00:07:16]} {[%emt 00:00:40]} 25. Be3 {[%clk 00:04:00]} {[%emt 00:00:04]}
b5 {[%clk 00:07:01]} {[%emt 00:00:21]} 26. Qf2 {[%clk 00:03:49]} {[%emt
00:00:15]} Qc4 {[%clk 00:06:51]} {[%emt 00:00:15]} 27. Rd1 {[%clk 00:03:22]}
{[%emt 00:00:33]} Bf8 {[%clk 00:06:50]} {[%emt 00:00:06]} 28. Rd4 {[%clk
00:03:10]} {[%emt 00:00:17]} Qc7 {[%clk 00:06:44]} {[%emt 00:00:11]} 29. Rd2
{[%clk 00:03:00]} {[%emt 00:00:15]} Qb7 {[%clk 00:06:26]} {[%emt 00:00:22]} 30.
Rd1 {[%clk 00:02:48]} {[%emt 00:00:18]} a5 {[%clk 00:05:52]} {[%emt 00:00:39]}
31. h5 {[%clk 00:02:50]} {[%emt 00:00:02]} a4 {[%clk 00:05:49]} {[%emt
00:00:08]} 32. a3 {[%clk 00:02:28]} {[%emt 00:00:27]} Nc6 {[%clk 00:05:33]}
{[%emt 00:00:21]} 33. Na2 {[%clk 00:01:39]} {[%emt 00:00:54]} b4 {[%clk
00:05:26]} {[%emt 00:00:12]} 34. axb4 Nxb4 {[%clk 00:05:30]} 35. Nxb4 {[%clk
00:01:31]} {[%emt 00:00:06]} Qxb4 {[%clk 00:05:33]} {[%emt 00:00:02]} 36. Qd2
{[%clk 00:01:01]} {[%emt 00:00:34]} Qe4 {[%clk 00:05:18]} {[%emt 00:00:20]} 37.
Qd3 {[%clk 00:00:59]} {[%emt 00:00:07]} Qc6 {[%clk 00:04:06]} {[%emt 00:01:18]}
38. g6 {[%clk 00:01:01]} {[%emt 00:00:02]} f5 {[%clk 00:02:56]} {[%emt
00:01:15]} 39. gxh7+ {[%clk 00:00:58]} {[%emt 00:00:07]} Kxh7 {[%clk 00:02:55]}
{[%emt 00:00:06]} 40. Rg1 {[%clk 00:00:39]} {[%emt 00:00:24]} Qf3 {[%clk
00:02:29]} {[%emt 00:00:32]} 41. Rg6 {[%clk 00:00:24]} {[%emt 00:00:20]} Qxh5
{[%clk 00:02:09]} {[%emt 00:00:26]} 42. Rxe6 {[%clk 00:00:26]} {[%emt
00:00:02]} Qf7 {[%clk 00:02:07]} {[%emt 00:00:07]} 43. Ra6 {[%clk 00:00:25]}
{[%emt 00:00:06]} a3 {[%clk 00:02:04]} {[%emt 00:00:09]} 44. b3 {[%clk
00:00:24]} {[%emt 00:00:05]} Re8 {[%clk 00:01:57]} {[%emt 00:00:12]} 45. Ra7
{[%clk 00:00:27]} {[%emt 00:00:03]} Qh5 {[%clk 00:01:44]} {[%emt 00:00:16]} 46.
Bc1 {[%clk 00:00:28]} {[%emt 00:00:05]} Re1 {[%clk 00:01:38]} {[%emt 00:00:12]}
47. Ra5 {[%clk 00:00:23]} {[%emt 00:00:10]} g6 {[%clk 00:01:30]} {[%emt
00:00:12]} 48. Ra7+ {[%clk 00:00:24]} {[%emt 00:00:04]} Bg7 {[%clk 00:01:21]}
{[%emt 00:00:14]} 49. Qd4 {[%clk 00:00:26]} {[%emt 00:00:04]} Qh6 {[%clk
00:00:44]} {[%emt 00:00:41]} 50. Rb7 {[%clk 00:00:22]} {[%emt 00:00:09]} a2+
{[%clk 00:00:36]} {[%emt 00:00:14]} 51. Kxa2 {[%clk 00:00:21]} {[%emt
00:00:05]} Rxc1 {[%clk 00:00:40]} {[%emt 00:00:01]} 52. b4 {[%clk 00:00:16]}
{[%emt 00:00:09]} Rxc2+ {[%clk 00:00:38]} {[%emt 00:00:08]} 53. Kb3 {[%clk
00:00:19]} {[%emt 00:00:01]} Re2 {[%clk 00:00:33]} {[%emt 00:00:10]} 54. Ka4
{[%clk 00:00:20]} {[%emt 00:00:05]} Re4 {[%clk 00:00:37]} {[%emt 00:00:01]} 55.
Qf6 {[%clk 00:00:18]} {[%emt 00:00:07]} Rxf4 {[%clk 00:00:32]} {[%emt
00:00:10]} 56. Kb5 {[%clk 00:00:15]} {[%emt 00:00:09]} g5 {[%clk 00:00:29]}
{[%emt 00:00:08]} 0-1

[Event "The Kvibergspelen 2024"]
[Site "Kviberg Park Hotel & Conference, Krutvagen 2, Gothenburg, Sweden"]
[Date "2024.09.06"]
[Round "2.16"]
[White "Andersson, Robert"]
[Black "Torres, Lucas"]
[Result "1/2-1/2"]
[TimeControl "15 minutes + 5 seconds per move from move one (Round 1 - 4) / 90 minutes + 30 seconds per move from move one (Round 5 - 8)"]
[WhiteFideId "1703226"]
[BlackFideId "1769464"]
[WhiteElo "2098"]
[BlackElo "1915"]

1. e4 {[%clk 00:14:53]} {[%emt 00:00:16]} e6 {[%clk 00:15:09]} {[%emt
00:00:02]} 2. d3 {[%clk 00:14:55]} {[%emt 00:00:02]} d5 {[%clk 00:15:13]}
{[%emt 00:00:02]} 3. Nd2 {[%clk 00:14:58]} {[%emt 00:00:02]} Nf6 {[%clk
00:15:16]} {[%emt 00:00:02]} 4. Ngf3 {[%clk 00:14:50]} {[%emt 00:00:12]} c5
{[%clk 00:15:19]} {[%emt 00:00:02]} 5. g3 {[%clk 00:14:52]} {[%emt 00:00:03]}
Nc6 {[%clk 00:15:21]} {[%emt 00:00:04]} 6. Bg2 {[%clk 00:14:55]} {[%emt
00:00:01]} Bd6 {[%clk 00:15:09]} {[%emt 00:00:17]} 7. O-O {[%clk 00:14:53]}
{[%emt 00:00:08]} O-O {[%clk 00:15:11]} {[%emt 00:00:03]} 8. Re1 {[%clk
00:14:55]} {[%emt 00:00:02]} Qc7 {[%clk 00:14:44]} {[%emt 00:00:33]} 9. Qe2
{[%clk 00:14:05]} {[%emt 00:00:54]} dxe4 {[%clk 00:13:02]} {[%emt 00:01:47]} 10.
Nxe4 {[%clk 00:14:04]} {[%emt 00:00:07]} Nxe4 {[%clk 00:12:17]} {[%emt
00:00:50]} 11. Qxe4 {[%clk 00:14:01]} {[%emt 00:00:07]} h6 {[%clk 00:11:11]}
{[%emt 00:01:11]} 12. c3 {[%clk 00:12:51]} {[%emt 00:01:15]} f5 {[%clk
00:09:54]} {[%emt 00:01:22]} 13. Qh4 {[%clk 00:12:33]} {[%emt 00:00:23]} Be7
{[%clk 00:09:38]} {[%emt 00:00:21]} 14. Qh5 {[%clk 00:12:29]} {[%emt 00:00:08]}
Bf6 {[%clk 00:09:04]} {[%emt 00:00:40]} 15. Be3 {[%clk 00:11:47]} {[%emt
00:00:47]} b6 {[%clk 00:07:47]} {[%emt 00:01:23]} 16. d4 {[%clk 00:11:40]}
{[%emt 00:00:12]} cxd4 {[%clk 00:07:20]} {[%emt 00:00:31]} 17. Bxd4 {[%clk
00:11:18]} {[%emt 00:00:28]} Bxd4 {[%clk 00:05:44]} {[%emt 00:01:40]} 18. Nxd4
{[%clk 00:11:15]} {[%emt 00:00:08]} Nxd4 {[%clk 00:05:42]} {[%emt 00:00:07]} 19.
cxd4 {[%clk 00:10:43]} {[%emt 00:00:38]} Bb7 {[%clk 00:04:53]} {[%emt
00:00:55]} 20. Bxb7 {[%clk 00:10:17]} {[%emt 00:00:30]} Qxb7 {[%clk 00:04:56]}
{[%emt 00:00:02]} 21. Rxe6 {[%clk 00:10:14]} {[%emt 00:00:07]} Qd5 {[%clk
00:04:59]} {[%emt 00:00:03]} 22. Rxh6 {[%clk 00:03:32]} {[%emt 00:06:46]} gxh6
{[%clk 00:04:56]} {[%emt 00:00:08]} 23. Qg6+ {[%clk 00:03:35]} {[%emt
00:00:02]} Kh8 {[%clk 00:04:59]} {[%emt 00:00:02]} 24. Qxh6+ {[%clk 00:03:39]}
{[%emt 00:00:02]} Kg8 {[%clk 00:05:02]} {[%emt 00:00:01]} 25. Qg6+ {[%clk
00:03:43]} {[%emt 00:00:02]} 1/2-1/2